bitfinex/quotes_BTCUSD_20250102
["timestamp","ask_amount","ask_price","bid_price","bid_amount"]
[1735842431609,0.01,96823.0,96822.0,2.23922726]
[1735842431761,0.017,96823.0,96822.0,2.23922726]
[1735842432377,0.007,96823.0,96822.0,2.23922726]
[1735842432588,0.007,96823.0,96822.0,2.24022726]
[1735842432799,0.016,96823.0,96822.0,2.36322726]
[1735842432979,0.016,96823.0,96822.0,2.36222726]
[1735842433385,0.009,96823.0,96822.0,2.36222726]
[1735842433809,0.016,96823.0,96822.0,2.46222726]
[1735842434346,0.009,96823.0,96822.0,2.46222726]
[1735842434648,0.018,96823.0,96822.0,2.46222726]
[1735842435093,0.009,96823.0,96822.0,2.46222726]
[1735842435405,0.018,96823.0,96822.0,2.46222726]
[1735842435537,0.009,96823.0,96822.0,2.46222726]
[1735842436354,0.018,96823.0,96822.0,2.46222726]
[1735842436599,0.0001712,96841.0,96840.0,0.09645925]
[1735842436800,0.0001712,96841.0,96840.0,0.80838857]
[1735842438011,0.0091712,96841.0,96840.0,1.90697157]
[1735842438236,0.0091712,96841.0,96840.0,0.20044557]
[1735842438434,0.0863712,96841.0,96840.0,0.09645925]
[1735842439822,0.0953712,96841.0,96840.0,0.09645925]
[1735842441780,0.0181712,96841.0,96840.0,0.09645925]
[1735842444080,0.0181712,96841.0,96840.0,0.20044557]
[1735842444283,0.0181712,96841.0,96840.0,0.32919557]
[1735842444903,0.0181712,96841.0,96840.0,1.97919557]
[1735842445353,0.0181712,96841.0,96840.0,2.10219557]
[1735842446202,1e-08,96841.0,96840.0,2.28439557]
[1735842446535,0.0452,96886.0,96885.0,0.09645925]
[1735842446744,0.0774,96892.0,96891.0,0.09645925]
[1735842447013,0.0778901,96892.0,96891.0,0.09645925]
[1735842447577,0.0778901,96892.0,96891.0,0.40686257]
[1735842447776,0.0004901,96892.0,96891.0,0.40686257]
[1735842448559,0.0004901,96892.0,96891.0,0.41086257]
[1735842448936,0.0004901,96892.0,96891.0,0.41286257]
[1735842449145,0.0004901,96892.0,96891.0,0.41086257]
[1735842449326,0.0004901,96892.0,96891.0,1.91086257]
[1735842449529,0.0014901,96892.0,96891.0,1.91986257]
[1735842449838,0.0014901,96892.0,96891.0,1.60545925]
[1735842450218,0.0014901,96892.0,96891.0,0.10445925]
[1735842451170,0.0024901,96892.0,96891.0,0.11345925]
[1735842452573,0.0014901,96892.0,96891.0,0.10445925]
[1735842452746,0.0024901,96892.0,96891.0,0.017]
[1735842453129,0.0819901,96892.0,96891.0,0.017]
[1735842454023,0.206417,96891.0,96876.0,0.09645925]
[1735842454398,0.206433,96884.0,96876.0,0.09645925]
[1735842454792,0.206441,96880.0,96876.0,0.09645925]
[1735842455795,0.206433,96884.0,96876.0,0.09645925]
[1735842455998,0.0799901,96892.0,96876.0,0.09645925]
[1735842456204,0.20644,96881.0,96876.0,0.09645925]
[1735842456493,0.001,96880.0,96876.0,0.10245925]
[1735842456702,0.206435,96883.0,96876.0,0.09645925]
[1735842457161,0.206435,96883.0,96876.0,0.10045925]
[1735842457421,0.206435,96883.0,96876.0,0.09645925]
[1735842457678,0.206435,96883.0,96876.0,0.10145925]
[1735842457925,0.206429,96886.0,96876.0,0.09645925]
[1735842458032,0.412858,96886.0,96876.0,0.09645925]
[1735842458272,0.0799901,96892.0,96880.0,0.09645925]
[1735842458487,0.206422,96889.0,96880.0,0.09645925]
[1735842459113,0.1311,96884.0,96880.0,0.09645925]
[1735842459295,0.206434,96883.0,96880.0,0.09645925]
[1735842459711,0.1311,96884.0,96880.0,0.09645925]
[1735842459909,0.1311,96884.0,96880.0,0.09845925]
[1735842460110,0.1311,96884.0,96880.0,0.09645925]
[1735842460463,0.1311,96884.0,96880.0,0.10145925]
[1735842460697,0.1311,96884.0,96880.0,0.09645925]
[1735842460919,0.206434,96883.0,96880.0,0.09645925]
[1735842461154,0.1311,96884.0,96880.0,0.10045925]
[1735842461396,0.1311,96884.0,96880.0,0.10445925]
[1735842461886,0.1311,96884.0,96883.0,0.09645925]
[1735842462477,0.1311,96884.0,96880.0,0.005]
[1735842462891,0.206434,96883.0,96880.0,0.005]
[1735842463094,0.206434,96883.0,96880.0,0.01]
[1735842463288,0.206434,96883.0,96876.0,1.5]
[1735842463497,0.1311,96884.0,96877.0,0.10398632]
[1735842463674,0.1311,96884.0,96880.0,0.008]
[1735842464020,0.412869,96883.0,96880.0,0.004]
[1735842464221,0.1311,96884.0,96880.0,0.005]
[1735842464222,0.10398632,96882.0,96880.0,0.005]
[1735842464363,0.439038,96881.0,96880.0,0.005]
[1735842465409,0.206473,96865.0,96860.0,0.09645925]
[1735842466309,0.206457,96873.0,96868.0,0.09645925]
[1735842466522,0.0836,96881.0,96865.0,0.206472]
[1735842466523,0.20644,96880.0,96870.0,0.09645925]
[1735842466725,0.289039,96881.0,96880.0,0.005]
[1735842467328,0.206447,96877.0,96874.0,0.09645925]
[1735842467506,0.289039,96881.0,96874.0,0.09645925]
[1735842467739,0.495478,96881.0,96874.0,0.09645925]
[1735842467903,0.206448,96877.0,96875.0,1.5]
[1735842468730,0.206448,96877.0,96874.0,0.005]
[1735842468944,0.412896,96877.0,96874.0,0.005]
[1735842469776,0.413896,96877.0,96875.0,0.006]
[1735842470070,0.412896,96877.0,96874.0,0.005]
[1735842470196,0.413896,96877.0,96874.0,0.011]
[1735842470401,0.413896,96877.0,96874.0,0.006]
[1735842470862,0.413896,96877.0,96875.0,0.005]
[1735842471266,0.2779,96876.0,96875.0,0.005]
[1735842471498,0.40842707,96876.0,96875.0,0.005]
[1735842471867,0.46339175,96875.0,96874.0,0.006]
[1735842472066,0.206492,96856.0,96855.0,1.0]
[1735842473235,0.206482,96861.0,96855.0,1.0]
[1735842473435,0.206483,96860.0,96856.0,0.09645925]
[1735842474426,0.206491,96857.0,96855.0,1.008]
[1735842474614,0.206491,96857.0,96856.0,0.005]
[1735842475250,0.206491,96857.0,96856.0,0.011]
[1735842475456,0.206491,96857.0,96855.0,1.0]
[1735842475794,0.206491,96857.0,96856.0,0.008]
[1735842475795,0.207491,96857.0,96856.0,0.008]
[1735842476683,0.206491,96857.0,96855.0,1.0]
[1735842476866,0.208491,96857.0,96855.0,1.014]
[1735842477066,0.002,96857.0,96855.0,1.014]
[1735842477272,0.001,96857.0,96856.0,1.59645925]
[1735842477527,0.001,96857.0,96856.0,1.80295125]
[1735842477725,0.002,96857.0,96856.0,1.80895125]
[1735842478440,0.002,96857.0,96856.0,1.60245925]
[1735842478620,0.002,96857.0,96856.0,1.80895125]
[1735842478823,0.001,96857.0,96856.0,1.80895125]
[1735842479042,0.002,96857.0,96856.0,1.81695125]
[1735842479728,0.002,96857.0,96856.0,1.61045925]
[1735842480370,0.002,96857.0,96856.0,1.92093757]
[1735842481958,0.002,96857.0,96856.0,0.42093757]
[1735842482534,0.002,96857.0,96856.0,2.02953057]
[1735842482735,0.002,96857.0,96856.0,2.12153057]
[1735842482966,0.2066108,96881.0,96856.0,1.80044557]
[1735842483101,0.20672714,96881.0,96870.0,0.20646]
[1735842483531,0.20672714,96881.0,96870.0,0.412922]
[1735842483873,0.20672714,96881.0,96871.0,1.5]
[1735842484515,0.20672714,96881.0,96875.0,0.09645925]
[1735842484516,0.206448,96877.0,96875.0,0.09645925]
[1735842484733,0.284858,96872.0,96871.0,1.5]
[1735842484881,0.1278,96872.0,96859.0,0.09645925]
[1735842485091,0.206462,96870.0,96864.0,0.09645925]
[1735842485318,0.1278,96872.0,96866.0,0.09645925]
[1735842485524,0.20646,96871.0,96866.0,0.09645925]
[1735842485907,0.1278,96872.0,96871.0,0.09645925]
[1735842486109,0.1278,96872.0,96868.0,0.09645925]
[1735842486306,0.20646,96871.0,96868.0,0.09645925]
[1735842486563,0.20646,96871.0,96870.0,0.005]
[1735842487304,0.206462,96870.0,96868.0,0.09645925]
[1735842487908,0.206462,96870.0,96868.0,0.10245925]
[1735842488580,0.20646,96871.0,96868.0,0.10245925]
[1735842488784,0.20646,96871.0,96868.0,0.10845925]
[1735842489307,0.412921,96871.0,96868.0,0.012]
[1735842489523,0.1278,96872.0,96868.0,0.09645925]
[1735842489729,0.206472,96866.0,96861.0,0.09645925]
[1735842490185,0.206472,96866.0,96862.0,0.09645925]
[1735842490385,0.206472,96866.0,96861.0,0.09645925]
[1735842491249,0.001,96866.0,96862.0,0.09645925]
[1735842491465,0.001,96866.0,96865.0,0.09645925]
[1735842491903,0.002,96866.0,96861.0,0.015]
[1735842492104,0.002,96866.0,96861.0,0.007]
[1735842492313,0.206478,96863.0,96861.0,0.007]
[1735842492515,0.206478,96863.0,96862.0,0.008]
[1735842492719,0.206478,96863.0,96857.0,0.09645925]
[1735842492967,0.206478,96863.0,96862.0,0.007]
[1735842493286,0.002,96866.0,96865.0,0.09645925]
[1735842493481,0.001,96866.0,96865.0,0.09645925]
[1735842495116,0.334258,96872.0,96865.0,0.09645925]
[1735842495368,0.002,96866.0,96865.0,0.11145925]
[1735842495725,0.002,96866.0,96865.0,0.42191757]
[1735842496129,0.002,96866.0,96865.0,1.92191757]
[1735842496556,0.0011708,96866.0,96865.0,1.91491757]
[1735842496956,0.0011708,96866.0,96865.0,1.91991757]
[1735842497341,0.0011708,96866.0,96865.0,1.91491757]
[1735842497736,0.0021708,96866.0,96865.0,1.92191757]
[1735842498118,0.0021708,96866.0,96865.0,0.42191757]
[1735842502241,0.0021708,96866.0,96865.0,1.92191757]
[1735842503452,0.0021708,96866.0,96865.0,0.11145925]
[1735842503665,0.0513708,96866.0,96865.0,0.11145925]
[1735842504277,0.0021708,96866.0,96865.0,0.21544557]
[1735842506419,0.0021708,96866.0,96865.0,1.71544557]
[1735842507631,0.0021708,96866.0,96865.0,0.21544557]
[1735842509943,0.0021708,96866.0,96865.0,0.015]
[1735842510152,0.0795708,96866.0,96865.0,0.015]
[1735842511865,0.1282708,96866.0,96865.0,0.015]
[1735842515842,0.356461,96871.0,96870.0,0.43369112]
[1735842516091,0.5419284,96871.0,96870.0,0.43369112]
[1735842517005,0.5419284,96871.0,96870.0,0.43569112]
[1735842517202,0.356461,96871.0,96870.0,0.43569112]
[1735842517494,0.360461,96871.0,96870.0,0.43569112]
[1735842518921,0.490261,96871.0,96870.0,0.43569112]
[1735842519320,0.4904318,96871.0,96870.0,0.43569112]
[1735842524299,0.4904318,96871.0,96870.0,0.43569112]
[1735842525772,0.4904318,96871.0,96870.0,0.43532994]
[1735842525973,0.52262778,96871.0,96870.0,0.43532994]
[1735842526175,0.4904318,96871.0,96870.0,0.43532994]
[1735842526376,0.52262776,96871.0,96870.0,0.43532994]
[1735842526588,0.4904318,96871.0,96870.0,0.43532994]
[1735842528009,0.2593318,96871.0,96870.0,0.43532994]
[1735842528643,0.2106318,96871.0,96870.0,0.43532994]
[1735842531987,0.2106318,96871.0,96870.0,0.43541534]
[1735842536081,0.0041708,96871.0,96870.0,0.53187459]
[1735842537038,0.0041708,96871.0,96870.0,0.43541534]
[1735842537900,0.0041708,96871.0,96870.0,0.53187459]
[1735842538133,0.0001708,96871.0,96870.0,0.43341534]
[1735842538594,0.0001708,96871.0,96870.0,0.43841534]
[1735842539063,0.0001708,96871.0,96870.0,0.43541534]
[1735842539314,0.0001708,96871.0,96870.0,0.43841534]
[1735842539566,0.0001708,96871.0,96870.0,0.44141534]
[1735842539814,0.0001708,96871.0,96870.0,0.52987459]
[1735842540322,0.0001708,96871.0,96870.0,0.43541534]
[1735842541292,0.0001708,96871.0,96870.0,0.43941534]
[1735842541497,0.0001708,96871.0,96870.0,0.43741534]
[1735842541710,0.0001708,96871.0,96870.0,0.44041534]
[1735842541850,0.0001708,96871.0,96870.0,0.43641534]
[1735842542056,0.0001708,96871.0,96870.0,0.44141534]
[1735842545433,0.0001708,96871.0,96870.0,0.53787459]
[1735842546831,0.0001708,96871.0,96870.0,0.61327459]
[1735842547641,0.20182049,96877.0,96870.0,0.61327459]
[1735842548556,0.20182049,96877.0,96870.0,0.61027459]
[1735842548756,0.20182049,96877.0,96870.0,0.60527459]
[1735842549559,0.206442,96880.0,96870.0,0.60527459]
[1735842549560,0.206442,96880.0,96877.0,0.09645925]
[1735842550581,0.412884,96880.0,96877.0,0.09645925]
[1735842551617,0.413884,96880.0,96877.0,0.09945925]
[1735842552250,0.413884,96880.0,96877.0,0.09645925]
[1735842552465,0.00028714,96881.0,96880.0,0.09645925]
[1735842553936,0.00028714,96881.0,96880.0,0.40688557]
[1735842554571,0.00028714,96881.0,96880.0,0.41088557]
[1735842554812,0.00028714,96881.0,96880.0,0.41188557]
[1735842555398,0.00028714,96881.0,96880.0,0.42196659]
[1735842555593,0.00028714,96881.0,96880.0,0.52265359]
[1735842555976,0.00028714,96881.0,96880.0,0.51765359]
[1735842556193,0.00128714,96881.0,96880.0,0.52465359]
[1735842556420,0.00228714,96881.0,96880.0,0.53265359]
[1735842556829,0.00228714,96881.0,96880.0,0.61475359]
[1735842557254,0.00228714,96881.0,96880.0,0.51406659]
[1735842557628,0.00128714,96881.0,96880.0,0.62492259]
[1735842557978,0.00128714,96881.0,96880.0,0.50706659]
[1735842558152,0.00228714,96881.0,96880.0,0.60606659]
[1735842558366,0.00228714,96881.0,96880.0,0.75981559]
[1735842558520,0.00928714,96881.0,96880.0,2.35381559]
[1735842558763,0.00028714,96881.0,96880.0,2.40251559]
[1735842558976,0.01428714,96881.0,96880.0,2.65451559]
[1735842559405,0.0001708,96892.0,96891.0,0.54645925]
[1735842559620,0.00066053,96892.0,96891.0,1.20036257]
[1735842560063,0.00066053,96892.0,96891.0,4.32286157]
[1735842560280,0.00066053,96892.0,96891.0,4.53341557]
[1735842561387,0.00966053,96892.0,96891.0,4.53441557]
[1735842561602,0.00966053,96892.0,96891.0,4.16965055]
[1735842561817,0.01666053,96892.0,96891.0,4.17065055]
[1735842562180,0.00066053,96892.0,96891.0,4.16865055]
[1735842562599,0.01666053,96892.0,96891.0,4.19183339]
[1735842562798,0.01666053,96892.0,96891.0,4.28404038]
[1735842563027,0.01666053,96892.0,96891.0,3.80421838]
[1735842563830,0.01666053,96892.0,96891.0,3.71201139]
[1735842565224,0.01666053,96892.0,96891.0,3.67961639]
[1735842566070,0.01666053,96892.0,96891.0,3.63920339]
[1735842566277,0.01666053,96892.0,96891.0,3.60247939]
[1735842568763,0.01666053,96892.0,96891.0,3.37427939]
[1735842569211,0.000171,96911.0,96910.0,0.50283625]
[1735842569422,0.00024679,96911.0,96910.0,1.36610657]
[1735842569635,0.00024679,96911.0,96910.0,1.94238157]
[1735842569847,1e-08,96911.0,96910.0,1.96538157]
[1735842570058,1e-08,96911.0,96910.0,2.35662257]
[1735842570667,0.0001712,96938.0,96927.0,0.60279925]
[1735842570893,0.00024697,96928.0,96927.0,1.58871257]
[1735842571267,0.00024697,96928.0,96927.0,2.83489757]
[1735842571686,0.00024697,96928.0,96927.0,2.85559801]
[1735842571902,0.00024697,96928.0,96927.0,2.78444101]
[1735842572106,0.00024697,96928.0,96927.0,2.77172401]
[1735842572350,0.00024697,96928.0,96927.0,2.77272401]
[1735842572549,0.00024697,96928.0,96927.0,2.77172401]
[1735842572767,0.00024697,96928.0,96927.0,2.10778557]
[1735842572944,0.00024697,96928.0,96927.0,2.27197957]
[1735842573822,0.00024697,96928.0,96927.0,2.27297957]
[1735842574448,0.00024697,96928.0,96927.0,2.29696857]
[1735842575170,0.00024697,96928.0,96927.0,2.29796857]
[1735842576472,0.00024697,96928.0,96927.0,2.29796857]
[1735842576670,0.00024697,96928.0,96927.0,2.10878557]
[1735842576870,0.00024697,96928.0,96927.0,2.30820457]
[1735842577074,0.00024697,96928.0,96927.0,2.55516357]
[1735842577277,0.00024697,96928.0,96927.0,2.50236544]
[1735842578233,0.00024697,96928.0,96927.0,2.41672044]
[1735842580041,0.00024697,96928.0,96927.0,2.21910244]
[1735842580379,0.00024697,96928.0,96927.0,2.62636144]
[1735842581186,0.00024697,96928.0,96927.0,2.61541144]
[1735842581416,0.0001712,96938.0,96937.0,0.40277825]
[1735842581614,0.0001712,96938.0,96937.0,0.50676457]
[1735842581994,0.0001712,96938.0,96937.0,2.00676457]
[1735842582565,0.0001712,96938.0,96937.0,2.00776457]
[1735842584063,0.0001712,96938.0,96937.0,2.00876457]
[1735842586255,0.0001712,96938.0,96937.0,1.80244557]
[1735842586393,0.0826712,96938.0,96937.0,1.80244557]
[1735842586608,0.0001712,96938.0,96937.0,1.80244557]
[1735842587464,0.0001712,96938.0,96937.0,1.90244557]
[1735842588009,0.0001712,96938.0,96937.0,1.80244557]
[1735842588365,0.0001712,96938.0,96937.0,1.70244557]
[1735842600500,0.1248712,96938.0,96937.0,0.002]
[1735842601086,0.15708496,96938.0,96937.0,0.002]
[1735842601287,0.15708496,96938.0,96937.0,0.001]
[1735842601488,0.15708496,96938.0,96921.0,0.2055]
[1735842601489,0.330836,96929.0,96921.0,0.2055]
[1735842601694,0.330836,96929.0,96921.0,0.09645925]
[1735842602146,0.330836,96929.0,96915.0,0.09220699]
[1735842602363,0.330836,96929.0,96918.0,0.09645925]
[1735842602762,0.330836,96929.0,96928.0,0.0051708]
[1735842604016,0.330836,96929.0,96928.0,0.0081708]
[1735842604240,0.330836,96929.0,96928.0,0.0031708]
[1735842604440,0.481836,96929.0,96928.0,0.0091708]
[1735842607170,0.60882232,96929.0,96928.0,0.0091708]
[1735842608600,0.70882232,96929.0,96928.0,0.0091708]
[1735842608918,0.71236307,96929.0,96928.0,0.0091708]
[1735842609123,0.478072,96912.0,96911.0,0.0001708]
[1735842609371,0.478072,96912.0,96911.0,0.00024657]
[1735842610967,0.328072,96912.0,96911.0,0.00924657]
[1735842611419,0.478072,96912.0,96911.0,0.00924657]
[1735842611957,0.479072,96912.0,96911.0,0.01624657]
[1735842616848,0.479072,96912.0,96911.0,0.00724657]
[1735842617363,0.481072,96912.0,96911.0,0.00024657]
[1735842617605,0.48304941,96912.0,96911.0,0.00224657]
[1735842617809,0.48604941,96912.0,96911.0,0.00224657]
[1735842618053,0.48604941,96912.0,96911.0,0.00024657]
[1735842618298,0.48604941,96912.0,96867.0,0.1]
[1735842618299,0.206432,96884.0,96883.0,0.09645925]
[1735842618818,0.21134216,96884.0,96883.0,0.09645925]
[1735842619318,0.21134216,96884.0,96878.0,0.09645925]
[1735842619319,0.20644,96880.0,96878.0,0.09645925]
[1735842619787,0.00488076,96879.0,96878.0,0.09645925]
[1735842620019,0.00488076,96879.0,96877.0,0.00057513]
[1735842620020,0.206445,96878.0,96877.0,0.00057513]
[1735842620404,0.21133516,96878.0,96877.0,0.00057513]
[1735842620606,0.00489016,96878.0,96877.0,0.09703438]
[1735842621213,0.206417,96892.0,96888.0,0.09645925]
[1735842621442,0.206412,96894.0,96891.0,0.09645925]
[1735842621924,0.412824,96894.0,96891.0,0.09645925]
[1735842622148,0.206412,96894.0,96891.0,0.09645925]
[1735842622383,0.206401,96899.0,96892.0,0.09645925]
[1735842622613,0.0761,96911.0,96905.0,0.09645925]
[1735842622842,0.00354075,96931.0,96896.0,0.206405]
[1735842622843,0.282449,96923.0,96915.0,0.09645925]
[1735842623078,0.20636,96918.0,96915.0,0.09645925]
[1735842623309,0.412682,96927.0,96921.0,0.09645925]
[1735842623562,0.09281442,96929.0,96921.0,0.09645925]
[1735842623563,0.24281442,96929.0,96921.0,0.09645925]
[1735842624020,0.206351,96922.0,96915.0,0.09645925]
[1735842624245,0.20634,96927.0,96921.0,0.09645925]
[1735842624477,0.206351,96922.0,96921.0,0.09945925]
[1735842624996,0.412704,96922.0,96921.0,0.004]
[1735842625485,0.412704,96922.0,96921.0,0.10045925]
[1735842626060,0.412704,96922.0,96921.0,0.004]
[1735842626275,0.412704,96922.0,96921.0,0.001]
[1735842626508,0.412704,96922.0,96921.0,0.09645925]
[1735842626770,0.206359,96919.0,96916.0,0.09645925]
[1735842627023,0.1500855,96929.0,96911.0,8.55e-05]
[1735842627024,0.20637,96913.0,96911.0,8.55e-05]
[1735842628253,0.20637,96913.0,96911.0,0.0040855]
[1735842630575,0.20637,96913.0,96911.0,0.0070855]
[1735842634988,0.1976,96912.0,96911.0,0.0070855]
[1735842635148,0.42458632,96912.0,96911.0,0.0070855]
[1735842635355,0.50608632,96912.0,96911.0,0.0070855]
[1735842636397,0.5382578,96912.0,96911.0,0.0040855]
[1735842636626,0.5382578,96912.0,96911.0,0.0080855]
[1735842637077,0.5382578,96912.0,96911.0,0.0040855]
[1735842637245,0.54179855,96912.0,96911.0,0.0040855]
[1735842637455,0.54179855,96912.0,96911.0,0.0080855]
[1735842638023,0.54179855,96912.0,96911.0,0.0040855]
[1735842639278,0.54179855,96912.0,96911.0,8.55e-05]
[1735842639840,0.54179855,96912.0,96911.0,0.0010855]
[1735842640104,0.44179855,96912.0,96911.0,0.0010855]
[1735842641089,0.54179855,96912.0,96911.0,0.0010855]
[1735842641921,0.68034952,96912.0,96911.0,0.0010855]
[1735842642492,0.68034952,96912.0,96911.0,8.55e-05]
[1735842643276,0.54179855,96912.0,96911.0,8.55e-05]
[1735842645201,1.05772855,96912.0,96911.0,8.55e-05]
[1735842645951,1.6105323,96912.0,96911.0,8.55e-05]
[1735842647188,1.37961402,96912.0,96911.0,8.55e-05]
[1735842647400,1.05772855,96912.0,96911.0,8.55e-05]
[1735842647859,1.05772855,96912.0,96911.0,5e-07]
[1735842648036,0.33544075,96902.0,96901.0,2.9e-07]
[1735842648176,1.26352255,96902.0,96901.0,2.9e-07]
[1735842650157,1.5858444,96902.0,96901.0,2.9e-07]
[1735842650779,1.5858444,96902.0,96877.0,8.54e-05]
[1735842650780,0.481545,96878.0,96877.0,8.54e-05]
[1735842650988,1.120475,96878.0,96877.0,0.00057513]
[1735842651161,1.22800207,96878.0,96877.0,0.00057513]
[1735842651833,1.26014602,96878.0,96877.0,0.00057513]
[1735842652299,1.26014602,96878.0,96877.0,1.3e-07]
[1735842652453,1.58246787,96878.0,96877.0,1.3e-07]
[1735842652794,1.58246787,96878.0,96877.0,0.00308563]
[1735842653192,1.58246787,96878.0,96877.0,8.563e-05]
[1735842653391,1.59881558,96878.0,96877.0,6.3e-07]
[1735842653755,1.61904595,96878.0,96877.0,6.3e-07]
[1735842653951,1.61904595,96878.0,96870.0,0.43341534]
[1735842653952,0.25354075,96871.0,96870.0,0.43341534]
[1735842654161,1.21486102,96871.0,96870.0,0.43353168]
[1735842654718,1.21132027,96871.0,96870.0,0.43353168]
[1735842655372,1.6865408,96871.0,96870.0,0.43353168]
[1735842655596,1.6895408,96871.0,96870.0,0.43353168]
[1735842656001,1.69308155,96871.0,96870.0,0.43353168]
[1735842656157,1.18571707,96871.0,96870.0,0.43353168]
[1735842656557,1.08571707,96871.0,96870.0,0.43353168]
[1735842656885,1.27816821,96871.0,96870.0,0.43353168]
[1735842657093,1.17816821,96871.0,96870.0,0.43353168]
[1735842657266,1.27816821,96871.0,96870.0,0.43353168]
[1735842658227,1.18571707,96871.0,96870.0,0.43353168]
[1735842660224,1.18571707,96871.0,96870.0,0.39223968]
[1735842660432,1.36917198,96871.0,96870.0,0.08835507]
[1735842660654,0.1,96838.0,96831.0,0.0001708]
[1735842660855,0.1,96838.0,96831.0,0.00023631]
[1735842660856,0.479543,96832.0,96831.0,0.00023631]
[1735842661062,1.10300007,96832.0,96831.0,0.00023631]
[1735842662139,1.09945932,96832.0,96831.0,0.00023631]
[1735842662334,1.09945932,96832.0,96831.0,0.00423631]
[1735842662764,1.07645932,96832.0,96831.0,0.00423631]
[1735842662973,0.89322708,96832.0,96831.0,0.00423631]
[1735842663158,0.90334908,96832.0,96831.0,0.00423631]
[1735842663620,0.90334908,96832.0,96831.0,0.00323631]
[1735842663913,0.90334908,96832.0,96831.0,0.00523631]
[1735842664125,0.90334908,96832.0,96831.0,0.00223631]
[1735842664933,1.00334908,96832.0,96831.0,0.00223631]
[1735842665132,0.90334908,96832.0,96831.0,0.00223631]
[1735842665436,1.00334908,96832.0,96831.0,0.00223631]
[1735842665674,1.1303354,96832.0,96831.0,0.00423631]
[1735842665850,1.13387615,96832.0,96831.0,0.00423631]
[1735842666394,1.21347615,96832.0,96831.0,0.00423631]
[1735842668638,1.2099354,96832.0,96831.0,0.00423631]
[1735842669207,1.21347615,96832.0,96831.0,0.00423631]
[1735842669405,1.25977615,96832.0,96831.0,0.00423631]
[1735842670031,1.25977615,96832.0,96831.0,0.004]
[1735842670312,1.25977615,96832.0,96831.0,3.1e-07]
[1735842670470,1.25977615,96832.0,96822.0,1.1e-07]
[1735842670471,0.48310275,96823.0,96822.0,1.1e-07]
[1735842670673,1.10301907,96823.0,96822.0,0.0001469]
[1735842671954,1.11101907,96823.0,96822.0,0.0011469]
[1735842672360,1.11301907,96823.0,96822.0,0.0011469]
[1735842673066,1.11101907,96823.0,96822.0,0.0011469]
[1735842673481,1.11301907,96823.0,96822.0,9e-07]
[1735842676107,1.11301907,96823.0,96822.0,8.64e-05]
[1735842677315,1.11301907,96823.0,96822.0,4.64e-05]
[1735842677953,1.11301907,96823.0,96822.0,4e-07]
[1735842678455,1.14503898,96823.0,96822.0,4e-07]
[1735842681581,0.25,96803.0,96791.0,0.0827]
[1735842681812,1.09952132,96803.0,96791.0,0.0827]
[1735842682189,1.13513483,96803.0,96802.0,1e-06]
[1735842682829,1.13513483,96803.0,96802.0,0.002001]
[1735842683084,1.13513483,96803.0,96802.0,1e-06]
[1735842683285,1.14549101,96803.0,96802.0,1e-06]
[1735842684394,0.356628,96792.0,96791.0,0.0002]
[1735842684593,0.99954432,96792.0,96791.0,0.0002]
[1735842685216,1.03161839,96792.0,96791.0,0.0002]
[1735842685460,1.03162718,96792.0,96791.0,0.0002]
[1735842685668,1.03177376,96792.0,96791.0,0.0022]
[1735842687154,1.03177376,96792.0,96791.0,0.0002]
[1735842687577,1.03377376,96792.0,96791.0,0.0002]
[1735842687791,1.044161,96792.0,96791.0,0.0002]
[1735842687988,1.044161,96792.0,96791.0,0.0002856]
[1735842690922,1.14770175,96792.0,96791.0,6e-07]
[1735842691337,0.206667,96774.0,96773.0,8.55e-05]
[1735842691528,1.03520693,96774.0,96773.0,8.55e-05]
[1735842691685,1.03520693,96774.0,96773.0,5e-07]
[1735842691882,1.18370693,96774.0,96773.0,5e-07]
[1735842692820,1.19414478,96774.0,96773.0,5e-07]
[1735842693790,1.20014478,96774.0,96773.0,5e-07]
[1735842694323,1.19914478,96774.0,96773.0,5e-07]
[1735842694538,0.356714,96752.0,96751.0,0.0002]
[1735842694743,1.03171318,96752.0,96751.0,0.0002]
[1735842695703,1.03525393,96752.0,96751.0,0.0002]
[1735842695903,1.1354004,96752.0,96751.0,0.0002]
[1735842696903,0.90487333,96752.0,96751.0,0.0807]
[1735842697117,0.87279047,96752.0,96751.0,0.0807]
[1735842697268,0.97279047,96752.0,96751.0,0.0002]
[1735842697467,1.07677679,96752.0,96751.0,0.0002]
[1735842697704,0.456731,96744.0,96743.0,1e-06]
[1735842697901,1.09964732,96744.0,96743.0,1e-06]
[1735842698106,1.13173832,96744.0,96743.0,1e-06]
[1735842698413,1.09964732,96744.0,96743.0,1e-06]
[1735842698797,0.20675,96735.0,96723.0,0.09645925]
[1735842699000,0.72268,96735.0,96723.0,0.09645925]
[1735842701175,0.73299092,96735.0,96723.0,0.09645925]
[1735842701576,0.73299092,96735.0,96734.0,0.0020855]
[1735842701983,0.87268,96735.0,96734.0,0.0818855]
[1735842704569,0.87268,96735.0,96734.0,0.0020855]
[1735842711446,1.09966632,96735.0,96734.0,0.0020855]
[1735842712448,1.13176566,96735.0,96734.0,0.0020855]
[1735842713279,1.13530641,96735.0,96734.0,5e-07]
[1735842713486,1.21420641,96735.0,96734.0,5e-07]
[1735842713885,1.13176566,96735.0,96734.0,5e-07]
[1735842714220,1.00477934,96735.0,96734.0,5e-07]
[1735842714447,1.13176566,96735.0,96734.0,5e-07]
[1735842714865,1.13530641,96735.0,96734.0,5e-07]
[1735842715274,0.356769,96726.0,96725.0,8.55e-05]
[1735842715446,1.03178466,96726.0,96725.0,8.55e-05]
[1735842715847,0.99968532,96726.0,96725.0,8.55e-05]
[1735842716388,1.03181786,96726.0,96725.0,8.55e-05]
[1735842717280,0.872699,96726.0,96725.0,8.55e-05]
[1735842717637,0.723699,96726.0,96725.0,0.0030855]
[1735842717844,0.723699,96726.0,96725.0,0.0826855]
[1735842718052,0.873699,96726.0,96725.0,0.0826855]
[1735842719088,0.873699,96726.0,96725.0,0.0030855]
[1735842720546,1.28577974,96726.0,96725.0,0.0030855]
[1735842720789,1.18179342,96726.0,96725.0,0.0030855]
[1735842721314,1.18079342,96726.0,96725.0,8.55e-05]
[1735842721718,1.18879342,96726.0,96725.0,8.55e-05]
[1735842721926,1.18279342,96726.0,96725.0,8.55e-05]
[1735842722471,1.18879342,96726.0,96725.0,5e-07]
[1735842722773,1.18879342,96726.0,96711.0,0.0002]
[1735842722972,0.379799,96712.0,96711.0,0.0002]
[1735842723207,1.03188267,96712.0,96711.0,0.0002]
[1735842724171,1.03202906,96712.0,96711.0,0.0002]
[1735842724807,1.03402906,96712.0,96711.0,0.0002]
[1735842724968,0.90704274,96712.0,96711.0,0.0002857]